bitfinex-derivatives/quotes_BTCF0:USTF0_20241008
["timestamp","ask_amount","ask_price","bid_price","bid_amount"]
[1728408719988,0.080308,62294.0,62287.0,0.03139287]
[1728408720198,0.080313,62291.0,62287.0,0.03139287]
[1728408720394,0.080309,62293.0,62292.0,0.002]
[1728408720797,0.441109,62293.0,62292.0,0.002]
[1728408721095,0.441109,62293.0,62287.0,0.03139287]
[1728408721096,0.080316,62289.0,62287.0,0.03339287]
[1728408721297,0.441116,62288.0,62287.0,0.00440831]
[1728408721502,0.080325,62281.0,62280.0,0.0037]
[1728408721697,0.3608,62282.0,62280.0,0.02890552]
[1728408721897,0.4689,62288.0,62281.0,0.19]
[1728408721898,0.47006,62288.0,62281.0,0.19]
[1728408722099,0.05294701,62290.0,62286.0,0.080318]
[1728408722397,0.05294701,62290.0,62289.0,0.12823827]
[1728408722603,0.05294701,62290.0,62289.0,0.57518749]
[1728408722804,0.05294701,62290.0,62289.0,0.44694922]
[1728408722999,0.15294701,62290.0,62289.0,0.27138427]
[1728408723887,0.15594701,62290.0,62289.0,0.55916479]
[1728408724102,0.15594701,62290.0,62289.0,0.27138427]
[1728408724299,0.63758701,62290.0,62289.0,0.38359854]
[1728408724597,0.64158701,62290.0,62289.0,0.27138427]
[1728408725100,0.15894701,62290.0,62289.0,0.27138427]
[1728408725498,0.15694701,62290.0,62289.0,0.27138427]
[1728408725696,0.63858701,62290.0,62289.0,0.27138427]
[1728408725898,0.15694701,62290.0,62289.0,0.27138427]
[1728408726411,1.23858701,62290.0,62289.0,0.27140024]
[1728408727199,1.23658701,62290.0,62289.0,0.1224084]
[1728408727403,1.23858701,62290.0,62289.0,0.21858259]
[1728408727701,1.23658701,62290.0,62289.0,0.21858259]
[1728408727908,1.23858701,62290.0,62289.0,0.21858259]
[1728408728616,1.23858701,62290.0,62289.0,0.1224084]
[1728408728791,0.15694701,62290.0,62289.0,0.2027234]
[1728408728992,0.004,62290.0,62289.0,0.3517166]
[1728408729303,0.084313,62290.0,62289.0,0.3517166]
[1728408729695,0.082313,62290.0,62289.0,0.3517166]
[1728408729900,0.091313,62290.0,62289.0,0.3517166]
[1728408730097,0.091313,62290.0,62289.0,0.080315]
[1728408730297,0.083313,62290.0,62289.0,0.080315]
[1728408730608,0.090313,62290.0,62289.0,0.080315]
[1728408730903,0.087313,62290.0,62289.0,0.080315]
[1728408731306,0.003,62290.0,62289.0,0.080315]
[1728408731602,0.003,62290.0,62289.0,0.10921881]
[1728408732000,0.441111,62292.0,62289.0,0.02890381]
[1728408732198,0.4608,62292.0,62291.0,0.080312]
[1728408732408,0.3608,62292.0,62291.0,0.080312]
[1728408733100,0.3608,62292.0,62291.0,0.1283988]
[1728408733301,0.3608,62292.0,62291.0,0.080312]
[1728408733501,0.3668,62292.0,62291.0,0.080312]
[1728408734206,0.3618,62292.0,62291.0,0.080312]
[1728408734404,0.001,62292.0,62291.0,0.14442773]
[1728408734599,0.0037,62300.0,62299.0,0.080302]
[1728408734807,0.00240815,62304.0,62299.0,0.080302]
[1728408734808,0.00240815,62304.0,62299.0,0.19]
[1728408734999,0.00240815,62304.0,62303.0,0.080297]
[1728408736803,0.00240815,62304.0,62303.0,0.270297]
[1728408737003,0.00740815,62304.0,62303.0,0.080297]
[1728408737502,0.01240815,62304.0,62303.0,0.080297]
[1728408740113,0.01240815,62304.0,62303.0,0.14434034]
[1728408740313,0.01240815,62304.0,62303.0,0.080297]
[1728408740713,0.01240815,62304.0,62303.0,0.17353302]
[1728408741420,0.01240815,62304.0,62303.0,0.10948968]
[1728408742011,0.01240815,62304.0,62303.0,0.02919268]
[1728408742211,0.01240815,62304.0,62302.0,0.06404334]
[1728408742420,0.01240815,62304.0,62302.0,0.14434134]
[1728408743615,0.01240815,62304.0,62302.0,0.06404334]
[1728408743817,0.080297,62303.0,62302.0,0.0285014]
[1728408744019,0.080299,62301.0,62300.0,0.04800837]
[1728408744316,0.080299,62301.0,62292.0,0.1067]
[1728408744317,0.080308,62295.0,62292.0,0.1067]
[1728408745821,0.441108,62295.0,62290.0,0.00088]
[1728408746121,0.441108,62295.0,62290.0,0.02890907]
[1728408746122,0.080312,62291.0,62290.0,0.02890907]
[1728408746422,0.080312,62291.0,62288.0,0.080316]
[1728408746918,0.080312,62291.0,62286.0,0.002408]
[1728408746919,0.080315,62289.0,62286.0,0.002408]
[1728408747121,0.080315,62289.0,62286.0,0.03158319]
[1728408747420,0.080315,62289.0,62286.0,0.002408]
[1728408747822,0.080315,62289.0,62288.0,0.001]
[1728408748126,0.3608,62290.0,62288.0,0.001]
[1728408748512,0.080315,62289.0,62288.0,0.001]
[1728408749517,0.080315,62289.0,62286.0,0.003408]
[1728408749716,0.080315,62289.0,62286.0,0.004408]
[1728408750219,0.085315,62289.0,62286.0,0.0310307]
[1728408750525,0.085315,62289.0,62286.0,0.002408]
[1728408750817,0.080315,62289.0,62286.0,0.002408]
[1728408751010,0.081315,62289.0,62286.0,0.002408]
[1728408751521,0.080317,62288.0,62286.0,0.002408]
[1728408752226,0.25732485,62290.0,62287.0,0.27134821]
[1728408752412,0.201069,62290.0,62288.0,0.55892517]
[1728408752619,0.201069,62290.0,62289.0,0.12239666]
[1728408752816,0.281382,62290.0,62289.0,0.12239666]
[1728408753016,0.281382,62290.0,62289.0,0.27134821]
[1728408753210,0.281382,62290.0,62289.0,0.14897886]
[1728408753413,0.204069,62290.0,62289.0,0.27137659]
[1728408753618,0.003,62290.0,62289.0,0.44692705]
[1728408753820,0.005,62290.0,62289.0,0.55897685]
[1728408754013,0.005,62290.0,62289.0,0.44692705]
[1728408754210,0.006,62290.0,62289.0,0.44692705]
[1728408754523,0.007,62290.0,62289.0,0.44692705]
[1728408755717,0.003,62290.0,62289.0,0.44692705]
[1728408755918,0.080311,62292.0,62289.0,0.56099865]
[1728408756116,0.080311,62292.0,62290.0,0.27137659]
[1728408756318,0.270311,62292.0,62291.0,0.27137659]
[1728408756912,0.370311,62292.0,62291.0,0.27137659]
[1728408757627,0.374311,62292.0,62291.0,0.27137659]
[1728408759021,0.33912801,62292.0,62291.0,0.27137659]
[1728408759628,0.33712801,62292.0,62291.0,0.27137659]
[1728408760322,0.33512801,62292.0,62291.0,0.30018473]
[1728408760626,0.33912801,62292.0,62291.0,0.27137659]
[1728408764827,0.379311,62292.0,62291.0,0.27137754]
[1728408765522,0.379311,62292.0,62291.0,0.21853105]
[1728408765722,0.080313,62290.0,62289.0,0.09613289]
[1728408765930,0.080313,62290.0,62288.0,0.09613289]
[1728408765931,0.080315,62289.0,62288.0,0.09613289]
[1728408766129,1.341055,62289.0,62288.0,0.09613289]
[1728408766321,1.26074,62289.0,62287.0,0.09613289]
[1728408766520,0.080316,62288.0,62287.0,0.09613289]
[1728408766730,0.200316,62288.0,62287.0,0.09613289]
[1728408767334,0.080321,62284.0,62283.0,0.080322]
[1728408767534,0.751121,62284.0,62283.0,0.080322]
[1728408768427,0.561121,62284.0,62283.0,0.080322]
[1728408768628,0.3608,62284.0,62283.0,0.080322]
[1728408769426,0.3638,62284.0,62283.0,0.080322]
[1728408769836,0.3658,62284.0,62283.0,0.080322]
[1728408770232,0.3628,62284.0,62283.0,0.082322]
[1728408770635,0.3628,62284.0,62283.0,0.083322]
[1728408770636,0.3608,62284.0,62283.0,0.083322]
[1728408771232,0.3618,62284.0,62283.0,0.083322]
[1728408771831,0.3608,62284.0,62283.0,0.083322]
[1728408773933,0.3608,62284.0,62283.0,0.082322]
[1728408774326,0.080316,62288.0,62283.0,0.53511153]
[1728408774532,0.080316,62288.0,62284.0,0.32455126]
[1728408774841,0.080319,62286.0,62285.0,0.32455126]
[1728408776531,0.082319,62286.0,62285.0,0.32455126]
[1728408777436,0.082319,62286.0,62285.0,0.45278953]
[1728408777838,0.083319,62286.0,62285.0,0.32455126]
[1728408779029,0.083319,62286.0,62285.0,0.45278953]
[1728408780236,0.083319,62286.0,62285.0,0.32455126]
[1728408780437,0.003,62286.0,62285.0,0.40487126]
[1728408780743,0.003,62286.0,62285.0,0.5272745]
[1728408781250,0.393319,62286.0,62285.0,0.4469545]
[1728408782050,0.393319,62286.0,62285.0,0.2713878]
[1728408782242,0.31,62286.0,62285.0,0.2713878]
[1728408782643,0.31,62286.0,62285.0,0.12240324]
[1728408782853,0.31,62286.0,62285.0,0.27140694]
[1728408782854,0.390319,62286.0,62285.0,0.27140694]
[1728408783038,0.871959,62286.0,62285.0,0.27140694]
[1728408783647,0.872959,62286.0,62285.0,0.27140694]
[1728408783947,0.42078267,62286.0,62285.0,0.27140694]
[1728408784246,0.42378267,62286.0,62285.0,0.12240324]
[1728408784643,1.50542267,62286.0,62285.0,0.21868722]
[1728408784836,0.48164,62285.0,62276.0,0.0037]
[1728408785041,0.080337,62272.0,62271.0,0.080338]
[1728408785241,0.441137,62272.0,62271.0,0.22936142]
[1728408785442,0.441137,62272.0,62271.0,0.08772342]
[1728408786446,0.442137,62272.0,62271.0,0.09072342]
[1728408786750,0.442137,62272.0,62271.0,0.17106142]
[1728408787336,0.442137,62272.0,62271.0,0.09072342]
[1728408787544,0.542137,62272.0,62271.0,0.003]
[1728408787750,0.542137,62272.0,62271.0,0.007]
[1728408787751,0.543137,62272.0,62271.0,0.007]
[1728408788461,0.57275503,62272.0,62271.0,0.007]
[1728408790048,0.57575503,62272.0,62271.0,0.004]
[1728408790654,0.57475503,62272.0,62271.0,0.004]
[1728408791043,0.57375503,62272.0,62269.0,0.080339]
[1728408791244,0.270339,62270.0,62269.0,0.080339]
[1728408791947,0.080342,62268.0,62267.0,0.00240849]
[1728408792149,0.190342,62268.0,62267.0,0.08275149]
[1728408793647,0.192342,62268.0,62267.0,0.00240849]
[1728408793849,0.080346,62265.0,62264.0,0.080346]
[1728408794456,0.441146,62265.0,62264.0,0.080346]
[1728408794749,0.441146,62265.0,62255.0,0.2122]
[1728408794750,0.4708,62265.0,62255.0,0.2122]
[1728408794957,0.270357,62256.0,62255.0,0.1076]
[1728408795152,0.270357,62256.0,62250.0,0.0290617]
[1728408795352,0.270357,62256.0,62249.0,0.00240978]
[1728408795353,0.19,62251.0,62249.0,0.00240978]
[1728408795651,0.080365,62250.0,62249.0,0.00240978]
[1728408796857,0.080361,62254.0,62250.0,0.080365]
[1728408797443,0.31339175,62255.0,62253.0,0.080361]
[1728408797646,0.00240992,62264.0,62254.0,0.69986184]
[1728408797947,0.00240992,62264.0,62258.0,0.19]
[1728408798148,0.00240992,62264.0,62263.0,0.080348]
[1728408799356,0.00240992,62264.0,62263.0,0.081348]
[1728408799753,0.080338,62271.0,62266.0,0.080344]
[1728408799953,0.080338,62271.0,62267.0,0.12244523]
[1728408800261,0.080338,62271.0,62268.0,0.12244523]
[1728408800456,0.080338,62271.0,62269.0,0.12244523]
[1728408800652,0.080338,62271.0,62270.0,0.12244523]
[1728408801055,0.274338,62271.0,62270.0,0.12244523]
[1728408801654,0.277338,62271.0,62270.0,0.12244523]
[1728408801858,0.080344,62266.0,62265.0,0.3608]
[1728408802157,0.080351,62261.0,62260.0,0.47405359]
[1728408802359,0.390351,62261.0,62260.0,0.50983127]
[1728408803971,0.390351,62261.0,62260.0,0.51183127]
[1728408803972,0.391351,62261.0,62260.0,0.51183127]
[1728408804477,0.752151,62261.0,62260.0,0.006]
[1728408812285,1.233991,62261.0,62258.0,0.08001805]
[1728408812472,0.752151,62261.0,62260.0,0.09619857]
[1728408813589,0.753151,62261.0,62260.0,0.09619857]
[1728408814181,0.753151,62261.0,62258.0,0.004]
[1728408814182,0.080353,62259.0,62258.0,0.004]
[1728408814390,0.190353,62259.0,62258.0,0.15306678]
[1728408815279,0.190353,62259.0,62258.0,0.14906678]
[1728408815982,0.191353,62259.0,62258.0,0.14906678]
[1728408816580,0.192353,62259.0,62258.0,0.14906678]
[1728408816885,0.192353,62259.0,62258.0,0.27153682]
[1728408817286,0.192353,62259.0,62258.0,0.35189182]
[1728408817589,0.112,62259.0,62258.0,0.35189182]
[1728408817889,0.192353,62259.0,62258.0,0.35189182]
[1728408818088,0.192353,62259.0,62258.0,0.27153682]
[1728408818589,0.192353,62259.0,62258.0,0.12247004]
[1728408819094,0.080364,62251.0,62250.0,0.0037]
[1728408819281,0.08037,62246.0,62245.0,0.080371]
[1728408819483,0.080373,62244.0,62243.0,0.11237359]
[1728408819790,0.270373,62244.0,62243.0,0.080374]
[1728408820291,0.370373,62244.0,62240.0,0.080378]
[1728408820484,0.19,62241.0,62240.0,0.080378]
[1728408821992,0.270378,62241.0,62240.0,0.080378]
[1728408822293,0.270378,62241.0,62239.0,0.3608]
[1728408822294,0.19,62241.0,62239.0,0.3608]
[1728408822485,0.080378,62240.0,62239.0,0.3608]
[1728408823391,0.08038,62238.0,62237.0,0.10958072]
[1728408823584,0.08038,62238.0,62237.0,0.080382]
[1728408824493,0.272377,62241.0,62238.0,0.080379]
[1728408824692,0.272377,62241.0,62235.0,0.13450406]
[1728408824893,0.272377,62241.0,62239.0,0.080378]
[1728408825191,0.001,62240.0,62239.0,0.080378]
[1728408825692,0.001,62241.0,62240.0,0.080378]
[1728408826083,0.0037,62253.0,62240.0,1.42108263]
[1728408826285,0.080359,62255.0,62254.0,0.08036]
[1728408826491,0.11,62255.0,62254.0,0.08036]
[1728408826895,0.11,62255.0,62254.0,0.16046125]
[1728408827102,0.190359,62255.0,62254.0,0.16046125]
[1728408827288,0.190359,62255.0,62254.0,0.08010125]
[1728408827490,0.08036,62254.0,62253.0,0.08010125]
[1728408827687,0.08036,62254.0,62253.0,0.14906627]
[1728408828102,0.08036,62254.0,62253.0,0.22942727]
[1728408828598,0.19,62256.0,62255.0,0.080359]
[1728408828797,0.24,62256.0,62255.0,0.22942242]
[1728408829103,0.320357,62256.0,62255.0,0.14906342]
[1728408829395,0.320357,62256.0,62253.0,0.001]
[1728408829585,0.320357,62256.0,62253.0,0.081361]
[1728408829793,0.320357,62256.0,62255.0,0.080359]
[1728408829995,0.321357,62256.0,62255.0,0.080359]
[1728408830301,0.321357,62256.0,62255.0,0.22942318]
[1728408831007,0.323357,62256.0,62255.0,0.22942318]
[1728408831596,0.272357,62256.0,62255.0,0.22942318]
[1728408832198,0.273357,62256.0,62255.0,0.22942318]
[1728408832394,0.271357,62256.0,62255.0,0.22942318]
[1728408832605,0.273357,62256.0,62255.0,0.22942318]
[1728408832791,0.275357,62256.0,62255.0,0.22942318]
[1728408833997,0.275357,62256.0,62255.0,0.35188911]
[1728408834303,0.275357,62256.0,62255.0,0.27153011]
[1728408834702,0.395357,62256.0,62255.0,0.12246593]
[1728408835200,0.315,62256.0,62253.0,0.08036]
[1728408835390,0.080359,62255.0,62254.0,0.20282723]
[1728408836297,0.200359,62255.0,62254.0,0.20282723]
[1728408837715,0.200359,62255.0,62254.0,0.12246723]
[1728408838196,0.202359,62255.0,62254.0,0.12246723]
[1728408838596,0.203359,62255.0,62254.0,0.12246723]
[1728408839108,0.203359,62255.0,62254.0,0.21871841]
[1728408839306,0.203359,62255.0,62254.0,0.29907841]
[1728408840411,0.123,62255.0,62254.0,0.29907841]
[1728408840907,0.203359,62255.0,62254.0,0.29907841]
[1728408842199,0.203359,62255.0,62254.0,0.12246723]
[1728408842595,0.09882386,62255.0,62254.0,0.27153033]
[1728408843009,0.09882386,62255.0,62254.0,0.35189033]
[1728408843503,0.09882386,62255.0,62254.0,0.35188927]
[1728408843895,0.09882386,62255.0,62254.0,0.35188833]
[1728408844514,0.09882386,62255.0,62254.0,0.27152833]
[1728408847611,0.080361,62253.0,62252.0,0.080362]
[1728408847812,0.190361,62253.0,62252.0,0.35190155]
[1728408848205,0.190361,62253.0,62235.0,0.26395954]
[1728408848206,0.4708,62253.0,62235.0,0.26395954]
[1728408848406,0.441169,62247.0,62246.0,0.08037]
[1728408848607,0.30450884,62247.0,62246.0,0.08037]
[1728408849004,0.26430147,62247.0,62246.0,0.08037]
[1728408849602,0.26530147,62247.0,62246.0,0.08137]
[1728408850107,0.26530147,62247.0,62246.0,0.25482019]
[1728408850904,0.26630147,62247.0,62246.0,0.25482019]
[1728408853922,0.26630147,62247.0,62246.0,0.28375601]
[1728408856114,0.3608,62259.0,62258.0,0.080355]
[1728408856416,0.36321014,62264.0,62263.0,0.080348]
[1728408856605,0.36321014,62264.0,62256.0,0.080357]
[1728408856606,0.08035,62262.0,62256.0,0.080357]
[1728408856811,0.36321014,62264.0,62258.0,0.080354]
[1728408856812,0.12,62259.0,62258.0,0.080354]
[1728408857011,0.12,62259.0,62258.0,0.45126263]
[1728408857313,0.126,62259.0,62258.0,0.45126263]
[1728408857513,0.126,62259.0,62258.0,0.2539759]
[1728408857718,0.132,62259.0,62258.0,0.2539759]
[1728408857912,0.012,62259.0,62258.0,0.25334045]
[1728408858122,0.012,62259.0,62258.0,0.37334045]
[1728408858431,0.012,62259.0,62258.0,0.52233391]
[1728408858720,0.012,62259.0,62258.0,0.71922173]
[1728408859106,0.012,62259.0,62258.0,0.74870761]
[1728408859607,0.012,62259.0,62258.0,0.55181979]
[1728408859812,0.3608,62272.0,62262.0,0.080348]
[1728408860023,0.3708,62272.0,62271.0,0.080338]
[1728408860320,0.3608,62272.0,62271.0,0.22933146]
[1728408860818,0.5508,62272.0,62271.0,0.14899346]
[1728408861023,0.631137,62272.0,62271.0,0.14899346]
[1728408861210,0.642137,62272.0,62271.0,0.14899346]
[1728408861527,0.3718,62272.0,62271.0,0.22875747]
[1728408861913,0.011,62272.0,62271.0,0.22875747]
[1728408862211,0.022,62272.0,62271.0,0.22875747]
[1728408862615,0.1074,62278.0,62276.0,0.080331]
[1728408862816,0.1074,62278.0,62277.0,0.08033]
[1728408863220,0.1074,62278.0,62277.0,0.20275319]
[1728408863618,0.1214,62278.0,62277.0,0.20275319]
[1728408863816,0.1354,62278.0,62277.0,0.20275319]
[1728408864528,0.1354,62278.0,62277.0,0.28280829]
[1728408864718,0.1354,62278.0,62277.0,0.20275319]
[1728408864719,0.028,62278.0,62277.0,0.20275319]
[1728408865233,0.024,62278.0,62277.0,0.20375319]
[1728408865718,0.021,62278.0,62277.0,0.20475319]
[1728408866330,0.011,62278.0,62277.0,0.20375319]
[1728408866529,0.001,62278.0,62277.0,0.12242319]
[1728408866823,0.001,62278.0,62277.0,0.20275319]
[1728408868030,0.001,62278.0,62277.0,0.39275319]
[1728408868534,0.004,62278.0,62277.0,0.39275319]
[1728408868742,0.004,62278.0,62277.0,0.20275319]
[1728408869429,0.004,62278.0,62277.0,0.29863068]
[1728408870441,0.004,62278.0,62277.0,0.20275319]
[1728408871336,0.004,62278.0,62277.0,0.39275319]
[1728408871845,0.004,62278.0,62277.0,0.48863068]
[1728408872042,0.10680884,62285.0,62277.0,1.57035068]
[1728408872242,0.00240884,62285.0,62284.0,0.080321]
[1728408872541,0.00240884,62285.0,62277.0,0.28587749]
[1728408872542,0.19240884,62285.0,62281.0,0.07985916]
[1728408872843,0.080327,62280.0,62278.0,0.07985916]
[1728408873034,0.23503884,62279.0,62278.0,0.07985916]
[1728408873240,0.23503884,62279.0,62277.0,0.001]
[1728408873547,0.04503884,62279.0,62278.0,0.080329]
[1728408874744,0.02140884,62285.0,62278.0,0.16018816]
[1728408874946,0.02140884,62285.0,62284.0,0.080321]
[1728408875148,0.01140884,62285.0,62284.0,0.080321]
[1728408875453,0.00240884,62285.0,62284.0,0.080321]
[1728408876049,0.00540884,62285.0,62284.0,0.080321]
[1728408876653,0.01440884,62285.0,62284.0,0.001]
[1728408876949,0.09472884,62285.0,62284.0,0.001]
[1728408877453,0.19472884,62285.0,62284.0,0.04889588]
[1728408877850,0.19472884,62285.0,62284.0,0.001]
[1728408878149,0.19472884,62285.0,62284.0,0.04890354]
[1728408878344,0.19572884,62285.0,62284.0,0.04990354]
[1728408878651,0.080321,62284.0,62283.0,0.04791223]
[1728408878946,0.080321,62284.0,62276.0,0.08355916]
[1728408878947,0.080328,62279.0,62278.0,0.06385683]
[1728408879154,0.561128,62279.0,62278.0,0.06385683]
[1728408879751,0.561128,62279.0,62277.0,0.08033]
[1728408879752,0.4808,62279.0,62277.0,0.08033]
[1728408879953,0.080329,62278.0,62277.0,0.08033]
[1728408880350,0.190729,62278.0,62277.0,0.08033]
[1728408881050,0.3608,62279.0,62273.0,0.21844993]
[1728408881251,0.004,62279.0,62278.0,0.080329]
[1728408881957,0.3698,62284.0,62282.0,0.080323]
[1728408882155,0.3698,62284.0,62279.0,0.080327]
[1728408882156,0.19,62283.0,62279.0,0.080327]
[1728408882354,0.080329,62278.0,62277.0,0.003]
[1728408882548,0.441129,62278.0,62276.0,0.080331]
[1728408882748,0.3608,62278.0,62277.0,0.08033]
[1728408883751,0.441129,62278.0,62277.0,0.08033]
[1728408883956,0.3608,62278.0,62277.0,0.08033]
[1728408885151,0.3608,62278.0,62277.0,0.08133]
[1728408887453,0.080328,62279.0,62277.0,0.08133]
[1728408887853,0.3608,62284.0,62278.0,0.2686192]
[1728408888049,0.541121,62284.0,62283.0,0.09617554]
[1728408888250,0.541121,62284.0,62283.0,0.21858564]
[1728408888446,0.541121,62284.0,62283.0,0.1224101]
[1728408888861,0.541121,62284.0,62283.0,0.26824754]
[1728408889157,0.541121,62284.0,62283.0,0.1224101]
[1728408889557,0.545121,62284.0,62283.0,0.2683239]
[1728408890856,0.547121,62284.0,62283.0,0.2683239]
[1728408891251,0.543121,62284.0,62283.0,0.2683239]
[1728408891459,0.544121,62284.0,62283.0,0.2693239]
[1728408892057,0.544121,62284.0,62283.0,0.2683239]
[1728408892452,0.544121,62284.0,62283.0,0.3486459]
[1728408892657,0.544121,62284.0,62283.0,0.5386459]
[1728408892658,0.3618,62284.0,62283.0,0.5386459]
[1728408892964,0.3638,62284.0,62283.0,0.82006292]
[1728408893167,0.003,62284.0,62283.0,0.70790803]
[1728408894065,0.07292579,62287.0,62286.0,0.080319]
[1728408894362,0.3608,62289.0,62288.0,0.080316]
[1728408894559,0.3608,62289.0,62288.0,0.5386399]
[1728408894760,0.3608,62289.0,62288.0,0.270316]
[1728408895661,0.3618,62289.0,62288.0,0.270316]
[1728408896062,0.3618,62289.0,62288.0,0.66032263]
[1728408896063,0.003,62289.0,62288.0,0.66032263]
[1728408896263,0.003,62289.0,62288.0,1.74196263]
[1728408897155,0.3608,62296.0,62295.0,0.080307]
[1728408897363,0.3608,62296.0,62295.0,0.270307]
[1728408898264,0.3618,62296.0,62295.0,0.270307]
[1728408898660,0.3618,62296.0,62295.0,0.080307]
[1728408898863,0.3618,62296.0,62291.0,0.080312]
[1728408899968,0.08031,62293.0,62291.0,0.080312]
[1728408900864,0.3648,62296.0,62288.0,0.39000663]
[1728408901064,0.3648,62296.0,62291.0,0.080312]
[1728408901265,0.080307,62295.0,62291.0,0.080312]
[1728408901868,0.080307,62295.0,62292.0,0.26550906]
[1728408902070,0.3638,62296.0,62293.0,0.26550906]
[1728408902371,0.080311,62292.0,62289.0,0.080314]
[1728408902576,0.080311,62292.0,62290.0,0.26548705]
[1728408902759,0.2116,62294.0,62291.0,0.26548705]
[1728408902965,0.291908,62294.0,62292.0,0.26548705]
[1728408903165,0.291908,62294.0,62293.0,0.12111847]
[1728408904785,0.2116,62294.0,62293.0,0.20142747]
[1728408905074,0.547506,62296.0,62293.0,0.23289869]
[1728408905280,0.55854601,62296.0,62295.0,0.09611636]
[1728408905569,0.4772,62296.0,62295.0,0.12111847]
[1728408905770,0.4772,62296.0,62295.0,0.21723483]
[1728408905771,0.3608,62296.0,62295.0,0.21723483]
[1728408905971,0.441106,62296.0,62295.0,0.21723483]
[1728408906177,0.3608,62296.0,62295.0,0.21723483]
[1728408906376,0.3608,62296.0,62295.0,0.12111847]
[1728408906782,0.3608,62296.0,62295.0,0.29754183]
[1728408906977,0.3608,62296.0,62295.0,0.20142547]
[1728408907168,0.00240822,62300.0,62299.0,0.080302]
[1728408907471,0.00240822,62300.0,62299.0,0.39142047]
[1728408907672,0.3645,62308.0,62299.0,1.70228774]
[1728408907673,0.0037,62308.0,62299.0,1.70228774]
[1728408907980,0.3738,62319.0,62307.0,0.5508]
[1728408907981,0.0112,62318.0,62307.0,0.5508]
[1728408908275,0.3608,62319.0,62318.0,0.080277]
[1728408908491,0.3608,62319.0,62318.0,0.12111847]
[1728408909271,0.3608,62319.0,62318.0,0.20139547]
[1728408909572,0.3608,62319.0,62318.0,0.16019152]
[1728408909874,0.48839471,62319.0,62318.0,0.081277]
[1728408910573,0.49239471,62319.0,62318.0,0.082277]
[1728408910973,0.49239471,62319.0,62318.0,0.08903589]
[1728408911874,0.44312052,62319.0,62318.0,0.08903589]
[1728408912678,0.16259652,62319.0,62318.0,0.002]
[1728408913586,0.16259575,62319.0,62318.0,0.002]
[1728408913778,0.08231975,62319.0,62318.0,0.002]
[1728408914278,0.08231975,62319.0,62318.0,0.082277]
[1728408914875,0.16259575,62319.0,62318.0,0.002]
[1728408915780,0.04300876,62319.0,62318.0,0.002]
[1728408916079,0.04300876,62319.0,62318.0,0.272277]
[1728408916876,0.012,62319.0,62318.0,0.272277]
[1728408917273,0.012,62319.0,62318.0,1.353677]
[1728408917477,0.012,62319.0,62318.0,1.714477]
[1728408917674,0.012,62319.0,62318.0,1.114477]
[1728408917973,0.012,62319.0,62318.0,1.714477]
[1728408918182,0.080263,62330.0,62318.0,1.714477]
[1728408918183,0.00240735,62331.0,62329.0,0.080263]
[1728408918372,0.00240735,62331.0,62329.0,0.270263]
[1728408918571,0.08266835,62331.0,62329.0,0.270263]
[1728408919175,0.08266835,62331.0,62329.0,0.19]
[1728408919389,0.00840735,62331.0,62329.0,0.19]
[1728408919685,0.00840735,62331.0,62318.0,0.081276]
[1728408919686,0.270263,62330.0,62318.0,0.081276]
[1728408919881,0.3608,62322.0,62318.0,0.080276]
[1728408920381,0.3608,62322.0,62316.0,0.0295681]
[1728408920382,0.080275,62320.0,62316.0,0.0295681]
[1728408920582,0.080275,62320.0,62316.0,0.080279]
[1728408920882,0.080275,62320.0,62317.0,0.080278]
[1728408921072,0.0112,62329.0,62316.0,0.19]
[1728408921272,0.00240735,62331.0,62328.0,0.19]
[1728408921585,0.08266835,62331.0,62329.0,0.080263]
[1728408922183,0.08266835,62331.0,62328.0,0.19]
[1728408922184,0.080262,62330.0,62328.0,0.19]
[1728408922368,0.00240735,62331.0,62328.0,0.19]
[1728408922573,0.08266835,62331.0,62329.0,0.080263]
[1728408922774,0.08266835,62331.0,62328.0,0.19]
[1728408922970,0.080262,62330.0,62328.0,0.19]
[1728408923376,0.080262,62330.0,62326.0,0.080267]
[1728408923577,0.080264,62329.0,62326.0,0.080267]
[1728408923771,0.080265,62328.0,62326.0,0.080267]
[1728408924284,0.3608,62328.0,62326.0,0.080267]
[1728408924685,0.3608,62328.0,62324.0,0.21865625]
[1728408924891,0.11957954,62327.0,62325.0,0.080267]
[1728408925076,0.27827305,62327.0,62324.0,0.21865625]
[1728408925276,0.44210501,62328.0,62325.0,0.080268]
[1728408925277,0.11957954,62326.0,62325.0,0.080268]
[1728408925472,0.0703116,62326.0,62324.0,0.21865625]
[1728408925678,0.00240735,62331.0,62325.0,0.080268]
[1728408925882,0.11957145,62330.0,62329.0,0.080262]
[1728408926082,0.11957145,62330.0,62324.0,0.21865625]
[1728408926276,0.11957145,62330.0,62324.0,0.19]
[1728408926582,0.11957145,62330.0,62327.0,0.080265]
[1728408926884,0.11957145,62330.0,62329.0,0.080263]
[1728408928285,0.07030684,62330.0,62324.0,0.17645934]
[1728408928588,0.29412272,62329.0,62328.0,0.270264]
[1728408928778,0.11957145,62329.0,62328.0,0.270264]
[1728408929475,0.11957145,62329.0,62328.0,0.260264]
[1728408929671,0.00240735,62331.0,62330.0,0.080262]
[1728408929881,0.15867721,62336.0,62330.0,0.080262]
[1728408930086,0.3608,62337.0,62336.0,0.080254]
[1728408930087,0.51947721,62337.0,62336.0,0.080254]
[1728408930382,0.15867721,62341.0,62335.0,0.18]
[1728408930582,0.15867721,62341.0,62332.0,0.3608]
[1728408930583,0.15867721,62341.0,62340.0,0.18]
[1728408930787,0.23892521,62341.0,62340.0,0.18]
[1728408931082,0.15867721,62342.0,62337.0,0.18]
[1728408931287,0.080252,62338.0,62335.0,0.19]
[1728408931476,0.080254,62336.0,62333.0,0.080257]
[1728408931784,0.080254,62336.0,62327.0,0.36320649]
[1728408931785,0.19,62335.0,62327.0,0.36320649]
[1728408932088,0.3962,62335.0,62327.0,0.36320649]
[1728408932275,0.080264,62328.0,62327.0,0.00240649]
[1728408932475,0.441064,62328.0,62327.0,0.00240649]